Cogmind - Beta 9.5 @@@ ROGUE MODE // 2020.04.10 @ 10:11:34 Player: Odoacre Result: Destroyed by as-88647 with Assembled Heavy Rifle Performance ------------- Evolutions (1) 500 Regions Visited (3) 600 Robots Destroyed (21) 105 Value Destroyed (518) 518 Prototype IDs (3) 60 Alien Tech Used (0) 0 Bonus (0) 0 TOTAL SCORE: 1783 Bonus ------- None Cogmind --------- Core Integrity 0/400 Matter 300/300 Energy 100/100 System Corruption 5% Temperature Cool (0) Movement Core (50) Location -9/Mines Parts ------- > --- POWER (1) -------- (None) > --- PROPULSION (3) --- (None) > --- UTILITY (3) ------ (None) > --- WEAPON (2) ------- (None) > --- INVENTORY (4) ---- Reinforced Ion Engine Autogun Datajack Peak State ------------ > --- POWER ------------ Improved Ion Engine > --- PROPULSION ------- Improved Treads Aluminum Leg Aluminum Leg > --- UTILITY ---------- Medium Storage Unit Weight Redist. System Hacking Suite > --- WEAPON ----------- Improved Medium Laser Autogun > --- INVENTORY -------- Reinforced Ion Engine Improved Signal Interpreter Light Assault Rifle Autogun Autogun Datajack Mining Laser [Rating: 18] Favorites ----------- Power Improved Ion Engine Engine Improved Ion Engine Propulsion Aluminum Leg Treads Improved Treads Leg Aluminum Leg Utility Small Storage Unit Device Weight Redist. System Storage Small Storage Unit Processor Seismic Analyzer Hackware Hacking Suite Weapon Autogun Energy Gun Small Laser Ballistic Gun Autogun Special Melee Weapon Datajack Build | -11 -10 -9 -9 ------- Run | Scr Mat Mat Min Slots Evolved 2 | . . 2 . Power . | . . . . Propulsion 1 | . . 1 . Utility 1 | . . 1 . Weapon . | . . . . Parts Attached 26 | 6 17 3 . Power 3 | 1 2 . . Engine 3 | 1 2 . . Core . | . . . . Reactor . | . . . . Propulsion 9 | 2 6 1 . Treads 1 | . . 1 . Leg 8 | 2 6 . . Wheel . | . . . . Hover . | . . . . Flight . | . . . . Utility 5 | 1 3 1 . Device 1 | . 1 . . Storage 2 | 1 1 . . Processor 1 | . 1 . . Hackware 1 | . . 1 . Protection . | . . . . Artifact . | . . . . Weapon 9 | 2 6 1 . Energy Gun 6 | 2 3 1 . Energy Cannon . | . . . . Ballistic Gun 2 | . 2 . . Ballistic Cannon . | . . . . Launcher . | . . . . Special Weapon . | . . . . Impact Weapon . | . . . . Slashing Weapon . | . . . . Piercing Weapon . | . . . . Special Melee Weapon 1 | . 1 . . Unidentified Prototypes 1 | . . 1 . Parts Lost 10 | . 3 . 7 Power . | . . . . Propulsion 3 | . . . 3 Utility 2 | . . . 2 Weapon 5 | . 3 . 2 Highest Loss Streak 7 | . 2 . 7 Average Slot Usage (%) 85 | . 92 89 31 Engine 11 | . 13 11 3 Treads 2 | . . 9 3 Leg 23 | . 26 22 5 Device 4 | . 1 11 3 Storage 12 | . 14 11 3 Processor 7 | . 11 . . Hackware 1 | . . 2 5 Energy Gun 11 | . 14 5 3 Ballistic Gun 10 | . 9 16 3 Naked Turns 45 | . . . 45 Heaviest Build 21 | 12 21 21 21 Greatest Support 26 | 20 26 26 26 Greatest Overweight (x) 4 | 3 3 . 4 Average Overweight (x) . | . . . . Largest Inventory Capacity 8 | 6 8 8 8 Average Capacity 6 | 5 6 8 5 Most Carried 8 | 2 6 8 7 Average Carried 4 | 1 4 6 4 Final Capacity 8 | 6 8 8 4 Final Carried 7 | 2 5 7 3 Class Distribution -------------------- 100% | Mutant Dominant Class ---------------- Mutant | -10/Materials Mutant | -9/Materials Mutant | -9/Mines Resources | -11 -10 -9 -9 ----------- Run | Scr Mat Mat Min Matter Collected 700 | 260 211 189 40 Remotely . | . . . . Salvage Created 749 | . 454 295 . Parts 43 | . 25 18 . Haulers Intercepted . | . . . . Recyclers Shooed 1 | . 1 . . Parts Field Recycled . | . . . . Retrieved Matter . | . . . . Parts Self-Destructed . | . . . . Prevented . | . . . . Kills | -11 -10 -9 -9 ------- Run | Scr Mat Mat Min Combat Hostiles Destroyed 14 | . 8 6 . Guns 13 | . 7 6 . Classes Destroyed 10 | . 5 5 . Worker 2 | . 2 . . Builder 1 | . 1 . . Tunneler 1 | . 1 . . Recycler 1 | . . 1 . Operator 1 | . . 1 . Watcher 1 | . 1 . . Swarmer 3 | . . 3 . Grunt 9 | . 8 1 . Brawler 1 | . . 1 . Sentry 1 | . . 1 . Best Kill Streak 5 | . 5 5 . Combat Bots Only 5 | . 2 5 . Max Kills in Single Turn 2 | . 2 1 . Gunslinging . | . . . . Exploded . | . . . . Melee . | . . . . Uniques/NPCs Destroyed . | . . . . Combat | -11 -10 -9 -9 -------- Run | Scr Mat Mat Min Damage Taken 1711 | . 736 294 681 Core 536 | . 136 51 349 Absorbed by Shields . | . . . . Core Remaining (%) 72 | 100 45 . . Volleys Fired 58 | . 28 30 . Largest 2 | . 2 2 . Hottest 80 | . 80 79 . Shots Fired 106 | . 47 59 . Gun 106 | . 47 59 . Cannon . | . . . . Launcher . | . . . . Special . | . . . . Kinetic 64 | . 14 50 . Thermal 37 | . 28 9 . Explosive . | . . . . Electromagnetic 5 | . 5 . . Robot Hit Streak 8 | . 8 5 . Robot Miss Streak 6 | . 3 6 . Penetration Max . | . . . . Secondary Targets 1 | . 1 . . Max Gunslinging Chain 1 | . 1 . . Shots Hit Robots 60 | . 34 26 . Core Hits 38 | . 24 10 4 Critical Hits 1 | . . 1 . Critical Kills . | . . . . Critical Parts Destroyed 1 | . . 1 . Melee Attacks 3 | . 3 . . Impact . | . . . . Slashing . | . . . . Piercing . | . . . . Sneak Attacks . | . . . . Combat Hostiles . | . . . . Follow-up Attacks . | . . . . Damage Inflicted 1004 | . 573 398 33 Guns 868 | . 470 398 . Cannons . | . . . . Explosions 93 | . 93 . . Melee . | . . . . Ramming 43 | . 10 . 33 Kinetic 509 | . 178 331 . Thermal 382 | . 315 67 . Explosive . | . . . . Electromagnetic 70 | . 70 . . Impact . | . . . . Slashing . | . . . . Piercing . | . . . . Highest Corruption 5 | . 1 . 5 Average Corruption 1 | . 1 . 5 Corruption Purged . | . . . . Effects 3 | . 3 . . Message Errors 1 | . 1 . . Energy Discharges 1 | . 1 . . Targeting Errors 1 | . 1 . . Overload Shots . | . . . . Overflow Damage . | . . . . Projectiles . | . . . . Explosions . | . . . . Melee . | . . . . Knockbacks . | . . . . Impact . | . . . . Kinetic . | . . . . Secondary . | . . . . Self-Inflicted Damage 16 | . 3 . 13 Shots . | . . . . Rammed 11 | . 4 . 7 Targets Rammed 12 | . 5 . 7 Kicked 1 | . 1 . . Crushed . | . . . . Highest Temperature 161 | . 161 46 . Average Temperature 35 | . 54 11 . Received Heat Transfer 487 | . 411 36 40 Siege Activations . | . . . . Robots Corrupted . | . . . . Combat Hostiles . | . . . . Parts Fried . | . . . . Impact Corruptions 1 | . 1 . . Robots Melted . | . . . . Combat Hostiles . | . . . . Parts Melted . | . . . . Heat Transferred 748 | . 600 148 . Parts Sabotaged . | . . . . Parts Stolen . | . . . . Parts Stripped . | . . . . Power Chain Reactions 1 | . 1 . . Missiles Intercepted . | . . . . Alert | -11 -10 -9 -9 ------- Run | Scr Mat Mat Min Peak Influence 268 | . 132 268 45 Average Influence 80 | . 74 137 11 Maximum Alert Level 1 | . . 1 . Low Security (%) 93 | 100 100 73 100 Level 1 6 | . . 26 . Level 2 . | . . . . Level 3 . | . . . . Level 4 . | . . . . Level 5 . | . . . . High Security . | . . . . Max Security . | . . . . Squads Dispatched 4 | . 1 3 . Investigation 3 | . 1 2 . Extermination . | . . . . Reinforcement 1 | . . 1 . Assault . | . . . . Garrison . | . . . . Intercept . | . . . . Construction Impeded . | . . . . Haulers Reinforced . | . . . . Stealth | -11 -10 -9 -9 --------- Run | Scr Mat Mat Min Distress Signals 1 | . . 1 . Communications Jammed . | . . . . Distress Signals . | . . . . Times Spotted 44 | . 10 13 21 Peak Tracking Total 13 | . 2 5 13 Tactical Retreats 3 | . . 1 2 Traps | -11 -10 -9 -9 ------- Run | Scr Mat Mat Min Traps Triggered 4 | . 3 1 . Indirectly . | . . . . Trap Hack Attempts . | . . . . Triggered . | . . . . Disarmed . | . . . . Reprogrammed . | . . . . Reused . | . . . . Traps Extracted . | . . . . Installed . | . . . . Triggered . | . . . . Machines | -11 -10 -9 -9 ---------- Run | Scr Mat Mat Min Machines Disabled 1 | . . 1 . Max in Single Turn 1 | . . 1 . Machines Sabotaged . | . . . . Garrisons Compromised . | . . . . Overloaded Fab Kills . | . . . . Fab Network Shutdowns . | . . . . Hacking | -11 -10 -9 -9 --------- Run | Scr Mat Mat Min Machines Accessed 5 | . 3 2 . Terminals 5 | . 3 2 . Fabricators . | . . . . Repair Stations . | . . . . Recycling Units . | . . . . Scanalyzers . | . . . . Garrison Access . | . . . . Total Hacks 17 | . 11 6 . Successful 10 | . 6 4 . Failed 7 | . 5 2 . Catastrophic 1 | . 1 . . Database Lockouts . | . . . . Manual 9 | . 6 3 . Terminals 17 | . 11 6 . Fabricators . | . . . . Repair Stations . | . . . . Recycling Units . | . . . . Scanalyzers . | . . . . Garrison Access . | . . . . Terminal Hacks 4 | . 2 2 . Prototype ID Bank 1 | . 1 . . Unreport Threat 1 | . . 1 . Dispatch Records 2 | . 1 1 . Fabricator Hacks . | . . . . Repair Station Hacks . | . . . . Recycling Unit Hacks . | . . . . Scanalyzer . | . . . . Garrison Access Hacks . | . . . . Unauthorized Hacks 14 | . 10 4 . Terminals 6 | . 4 2 . Assimilate 1 | . 1 . . Botnet 5 | . 3 2 . Fabricators . | . . . . Repair Stations . | . . . . Recycling Units . | . . . . Scanalyzers . | . . . . Garrison Access . | . . . . Data Cores Recovered . | . . . . Used . | . . . . Hacking Detections 4 | . 2 2 . Full Trace Events 2 | . 1 1 . Feedback Events . | . . . . Feedback Blocked . | . . . . Robot Schematics Acquired . | . . . . Robots Built . | . . . . Matter . | . . . . Time . | . . . . Total Robot Build Rating . | . . . . Part Schematics Acquired . | . . . . Parts Built . | . . . . Matter . | . . . . Time . | . . . . Total Part Build Rating . | . . . . Parts Repaired . | . . . . Time . | . . . . Parts Recycled . | . . . . Recycled Matter . | . . . . Retrieved Matter . | . . . . Retrieved Components . | . . . . Parts Scanalyzed . | . . . . Part Schematics Acquired . | . . . . Parts Damaged . | . . . . Bothacking | -11 -10 -9 -9 ------------ Run | Scr Mat Mat Min Used RIF Installer . | . . . . Robots Hacked 1 | . 1 . . Non-combat . | . . . . Combat 1 | . 1 . . Robot Hacks Applied 1 | . 1 . . parse_system 1 | . 1 . . Relay Couplers Released . | . . . . Robots Rewired . | . . . . Allies Hacked . | . . . . Hacks Repelled . | . . . . Allies | -11 -10 -9 -9 -------- Run | Scr Mat Mat Min Total Allies . | . . . . Largest Group . | . . . . Highest-Rated Group . | . . . . Highest-Rated Ally . | . . . . Total Orders . | . . . . Ally Attacks . | . . . . Total Damage . | . . . . Kills . | . . . . Allies Corrupted . | . . . . Allies Melted . | . . . . Intel | -11 -10 -9 -9 ------- Run | Scr Mat Mat Min Robot Analysis Total . | . . . . Derelict Logs Recovered 1 | . . . 1 Drone Launches . | . . . . Drone Recoveries . | . . . . Exploration | -11 -10 -9 -9 ------------- Run | Scr Mat Mat Min Turns Passed 1050 | 62 628 265 95 Spaces Moved 682 | 44 377 122 139 Core 132 | 6 7 . 119 Treads . | . . . . Legs 550 | 38 370 122 20 Wheels . | . . . . Hover . | . . . . Flight . | . . . . Fastest Speed 50 | 50 100 120 50 Average Speed 108 | 118 120 120 62 Slowest Speed 250 | 200 200 120 250 Overloaded Moves . | . . . . Propulsion Burnouts . | . . . . Robots Hopped . | . . . . Cave-ins Triggered . | . . . . Exploration Rate (%) 37 | 4 67 25 55 Regions Visited 3 Branch Regions 1 Pre-discovered Areas 1 | . . . 1 Known Exits Taken . | . . . . Unknown Exits Taken 3 | 1 1 1 . Scrap Searched 1 | . . . 1 Spaces Dug . | . . . . Terrain Destroyed . | . . . . Melee . | . . . . Projectile . | . . . . AOE . | . . . . Actions | -11 -10 -9 -9 --------- Run | Scr Mat Mat Min Total 891 | 51 500 191 149 Wait 77 | . 45 32 . Move 679 | 43 376 121 139 Hop . | . . . . Pick Up 19 | 2 13 4 . Fast Attach 14 | 6 7 1 . Attach 3 | . 2 1 . Detach 1 | . 1 . . Swap 9 | . 8 1 . Drop 16 | . 12 1 3 Fire 58 | . 28 30 . Melee 3 | . 3 . . Ram 7 | . . . 7 Kick 5 | . 5 . . Crush . | . . . . Escape Stasis . | . . . . Rewire . | . . . . Trap . | . . . . Miscellaneous . | . . . . Route ------- -11/Scrapyard -10/Materials (discovered 2 exits: *Mat x2) -9/Materials -9/Mines History --------- Turn | Location | Event 19 | -11/Scrapyard | Discovered new exit (range 15) 63 | -11/Scrapyard | Entered Materials 321 | -10/Materials | Build established: Mutant 349 | -10/Materials | Discovered new exit (range 7) 509 | -10/Materials | Core integrity fell below 50% 657 | -10/Materials | Discovered new exit (range 15) 691 | -10/Materials | Entered another Materials area 691 | -9/Materials | Evolved 2 slots: Propulsion x1, Utility x1 938 | -9/Materials | Discovered new exit (range 16) 956 | -9/Materials | Entered Mines 963 | -9/Mines | Assembled infested the area 968 | -9/Mines | Assisted by a Guerilla fighting off Assembled 968 | -9/Mines | Learned location of Storage (-8) 1002 | -9/Mines | Core integrity fell below 50% 1007 | -9/Mines | Core integrity fell below 20% 1037 | -9/Mines | Lost 7 parts (3n2u2w) 1051 | -9/Mines | Destroyed by as-88647 with Assembled Heavy Rifle Last Messages --------------- 00981_ Autogun destroyed. 00981_ Imp. Medium Laser destroyed. 00983_ The unstable cave ceiling collapses. 00983_ 8B-SH4(h) destroyed. 00983_ Weight Redist. System destroyed. 00986_ The unstable cave ceiling collapses. 00986_ Dropped Med. Storage Unit. 00986_ U-05 Engineer builds a Wall. 00986_ Dropped Lgt. Assault Rifle. 00987_ Dropped Imp. Ion Engine. 00987_ Imp. Treads destroyed. 00988_ U-05 Engineer lays Concrete. 00989_ U-05 Engineer builds a Wall. 00990_ The unstable cave ceiling collapses. 00994_ as-41779 destroyed. 01001_ Slammed into as-42202. 01006_ Hacking Suite destroyed. 01006_ System corrupted by crushing effect (+5). 01006_ Slammed into as-42417. 01050_ Slammed into as-88647. Map ----- +----------------------------------------------------+ | ??????????????????????????????????? | | ??????????????????????????????????? | | ??????????????????????????????????? | | ??????????????????????????????????? | | ??????????????????????????????????? | | ??????????????????????????????????? | | ??????????????????????????????????? | | ??????????????????????????????????? | | ??????????????????????????????????? | | ??????????????????????????????????? | | ?????? ?????????????????????????? | | ?????? ?????????? ??????????????? | | ?????? ?????????# ????????????????? | | ?????? ???????## ????????????????? | | ?????? ?????## ????????????????? | | ?????? ?????# ?????????????????? | | ?????? ????? ?????????????????? | | ?????# #????? ?????????????????? | | ?????# ????? #?????????????????? | | ?????# #????? #?????????????????? | | ?????# #????? #?????????????????? | | ?????# #?????# #####?????????????? | | ?????# #?????# #?????????????? | | ?????# #????## #?????????????? | | ?????# ######a #??????????????? | | ?????# @a a #???????????????? | | ?????#######a #???????????????? | | ???????????## a ##???????????????? | | ????????????### ##????????????????? | | ??????????????# #?????????????????? | | ??????????????# #?????????????????? | | ???????####???# #?????????????????? | | ??????## ###?# #?????????????????? | | ?????## ### #?????????????????? | | ?????# ## #?????????????????? | | ?????# """ ## ##????????????????? | | ?????## """ #?????????#??????? | | ?????## """ ### #????????? ?????## | | ????## #?? #????????? ????? | | ???## ### #????????? #???? | | ???# #????????? ????# | | ???# #### #????????? #???# | | ???## #??? #?????????# #???# | | ????# #??? ?????????# #???# | | ????# ##???##????????? #???# | | ????# ###???????????????# #???# | | ????## ##?????????????????# #???# | | ?????# #??####????????????# #??## | | ?????# #?## ##???????##### #### | | ?????# ### #???????# | +----------------------------------------------------+ Best States ------------- Heat Dissipation 28 Energy Generation 12 Energy Capacity 265 Matter Stores 300 Matter Capacity 300 Sight Range 16 Terrain Scan Density 60 Additional Mass Support 6 Evasion (%) 50 Recoil Reduction 1 Offensive Hacking 10 Item Schematics ----------------- None Robot Schematics ------------------ None Fabricated ------------ Nothing Alien Tech Used ----------------- None Achievements -------------- Quantum Hacking Challenges ------------ None Game ------ Seed CloakMetafieldStorage Manual? 0 Play Time 00:26:43 Cumulative 19.0 hours Start 2020.04.10 @ 09:46:51 End 2020.04.10 @ 10:11:34 Sessions 1 Manual Loads 0 Difficulty Rogue Special Mode None Game No. 28 Rogue 27 Adventurer 1 Explorer 0 Win Type - Total 0 Types 0/0/0/0/0/0/0 Lore% 22 Gallery% 20 Achievement% 17 Wizard Run 0 Options --------- ASCII 1 Keyboard 0 Movement Vi Keybinds 0 Fullscreen 1 Font 28/SmallcapsGlow Map View 84x54 Tactical HUD 1 Map Filters NONE Filters NONE Steam 1 RUN: 77cd908e-3f34-4bef-a3e3-a199f8a47b9d